bitfinex/quotes_ETHUSD_20240702
["timestamp","ask_amount","ask_price","bid_price","bid_amount"]
[1719880648593,3.484733,3443.6,3442.8,2.9046]
[1719880648800,5.23758,3443.8,3443.1,0.827]
[1719880649097,0.30894517,3443.7,3443.1,0.827]
[1719880649304,3.21282517,3443.7,3443.1,0.827]
[1719880649625,5.23758,3443.8,3443.1,3.73135]
[1719880649929,0.30894558,3443.7,3443.3,0.827]
[1719880650127,0.30894558,3443.7,3443.3,3.73118]
[1719880650429,2.2613,3444.1,3443.5,0.827]
[1719880650595,0.81179253,3444.0,3443.5,0.827]
[1719880650930,0.30912474,3443.9,3443.3,3.73118]
[1719880651123,0.30912474,3443.8,3443.3,3.73118]
[1719880651324,5.16483,3444.1,3443.4,2.9041]
[1719880651496,1.70151037,3444.0,3443.4,2.9041]
[1719880651694,0.30931189,3443.9,3443.4,2.9041]
[1719880652016,0.13222318,3443.8,3443.4,2.9041]
[1719880652414,0.88952,3444.0,3443.4,2.9041]
[1719880652619,0.94416227,3443.9,3443.4,2.9041]
[1719880652928,0.30925637,3443.8,3443.4,2.9041]
[1719880653325,0.30925637,3443.8,3443.3,0.827]
[1719880653532,0.44147955,3443.7,3443.3,3.73118]
[1719880653831,0.88952,3444.0,3443.3,3.73118]
[1719880654033,0.13224146,3443.6,3443.3,3.73118]
[1719880654193,0.605435,3443.9,3443.4,2.90409]
[1719880654399,0.44144445,3443.8,3443.4,2.90409]
[1719880654599,0.30920299,3443.7,3443.4,2.90409]
[1719880654995,5.16483,3444.1,3443.3,0.827]
[1719880655223,0.81214735,3444.0,3443.3,3.73113]
[1719880655417,0.81214735,3443.9,3443.3,3.73113]
[1719880655619,0.81214598,3443.8,3443.2,3.73127]
[1719880655795,0.44169298,3443.7,3443.2,3.73127]
[1719880655998,0.30945152,3443.6,3443.2,3.73127]
[1719880656198,0.1322506,3443.5,3443.2,3.73127]
[1719880656627,3.50143774,3443.9,3443.2,3.73127]
[1719880656832,0.1322506,3443.4,3443.2,3.73127]
[1719880657008,0.1322506,3443.4,3443.0,2.90439]
[1719880657209,0.13222623,3443.3,3443.1,0.827]
[1719880657595,0.13222623,3443.2,3443.1,0.827]
[1719880658000,0.86662677,3443.8,3443.1,0.827]
[1719880658200,4.71456477,3443.7,3443.1,0.827]
[1719880658431,0.30921793,3443.6,3443.1,3.73135]
[1719880658735,0.44142283,3443.6,3443.1,3.73135]
[1719880658921,0.30921793,3443.5,3443.1,3.73135]
[1719880659232,0.44143806,3443.5,3443.1,2.90435]
[1719880659536,0.30921793,3443.4,3443.1,3.73135]
[1719880659941,0.13221099,3443.3,3443.1,3.73135]
[1719880660513,2.90386,3443.7,3443.1,3.73135]
[1719880660837,0.30927592,3443.6,3443.1,3.73135]
[1719880661025,0.44148691,3443.6,3443.1,3.73135]
[1719880661206,0.30927592,3443.5,3443.1,3.73135]
[1719880661606,0.30927592,3443.4,3443.1,3.73135]
[1719880661808,0.30927592,3443.3,3443.1,3.73135]
[1719880662431,0.13221099,3443.2,3443.1,3.73135]
[1719880662816,2.90377,3443.8,3443.1,3.73135]
[1719880663011,2.14070702,3443.7,3443.1,3.73135]
[1719880663223,0.81195602,3443.6,3443.1,3.73135]
[1719880663445,0.3092388,3443.5,3443.1,3.73135]
[1719880663613,0.3092388,3443.4,3443.1,3.73135]
[1719880663821,0.44144979,3443.3,3443.1,3.73135]
[1719880664031,0.13221099,3443.3,3443.1,3.73135]
[1719880664552,0.13221099,3443.2,3443.1,3.73135]
[1719880664907,2.90377,3443.8,3443.1,3.73135]
[1719880665119,0.13221099,3443.2,3443.1,3.73135]
[1719880665314,0.30923039,3443.2,3443.1,3.73135]
[1719880665737,0.30923039,3443.7,3443.1,3.73135]
[1719880666036,0.13221099,3443.2,3443.1,3.73135]
[1719880666215,0.30923039,3443.5,3443.1,3.73135]
[1719880666418,0.30923039,3443.4,3443.1,3.73135]
[1719880666742,0.30923039,3443.3,3443.2,2.90426]
[1719880667244,0.44144138,3443.3,3443.2,2.90426]
[1719880673947,0.44144138,3443.3,3443.2,5.33986]
[1719880674513,0.44144138,3443.3,3443.2,2.90426]
[1719880676653,0.44091507,3443.3,3443.2,2.90426]
[1719880677852,0.44091507,3443.3,3443.2,5.80853]
[1719880678021,0.44091507,3443.3,3443.2,6.707223]
[1719880679483,0.13221099,3443.3,3443.2,17.930693]
[1719880679822,2.3425,3444.5,3444.0,2.90355]
[1719880680025,2.49751615,3444.4,3444.0,2.90355]
[1719880680359,2.49751615,3444.3,3444.0,2.90355]
[1719880680528,2.49751615,3444.2,3444.1,2.90351]
[1719880680724,0.81139109,3444.2,3444.1,2.90351]
[1719880680930,0.30878267,3444.2,3444.1,3.73051]
[1719880681139,0.43676338,3444.2,3444.1,3.73051]
[1719880681336,0.30878267,3444.2,3444.1,9.11852]
[1719880681536,0.30908777,3444.8,3444.5,2.90311]
[1719880681736,0.30911158,3444.7,3444.5,2.90311]
[1719880681936,0.30911158,3444.6,3444.5,2.90311]
[1719880682235,0.93962851,3444.6,3444.5,2.90311]
[1719880682558,0.43709535,3444.6,3444.5,2.90311]
[1719880687161,0.43709535,3444.6,3444.1,2.4845]
[1719880687162,1.21409035,3444.6,3444.1,2.90345]
[1719880687463,0.30911158,3444.5,3444.2,2.9034]
[1719880687829,0.12821316,3444.4,3444.2,2.9034]
[1719880688036,0.30911158,3444.3,3444.2,2.9034]
[1719880688667,0.12821316,3444.3,3444.2,3.7304]
[1719880689030,0.43730028,3444.3,3444.2,3.7304]
[1719880689480,0.43730028,3444.3,3444.2,6.2068]
[1719880692670,0.43730028,3444.3,3444.2,3.7304]
[1719880693666,0.43730028,3444.3,3444.2,0.827]
[1719880693856,0.43730028,3444.3,3444.2,3.73043]
[1719880695245,0.43730028,3444.3,3444.0,3.73059]
[1719880695471,0.30911158,3444.2,3444.0,3.73059]
[1719880695766,0.12407711,3444.1,3444.0,3.73059]
[1719880695977,0.30911158,3444.1,3444.0,3.73059]
[1719880696269,2.359,3444.4,3444.1,2.9035]
[1719880696270,0.30916234,3444.3,3444.1,2.9035]
[1719880696437,0.1240679,3444.2,3444.1,2.9035]
[1719880696643,0.30911616,3444.2,3444.1,2.9035]
[1719880696850,0.1240679,3444.2,3444.1,2.9035]
[1719880697053,0.30911616,3444.2,3444.1,2.9035]
[1719880697250,0.1240679,3444.2,3443.8,2.90375]
[1719880697455,0.30911616,3444.2,3443.9,0.827]
[1719880697665,0.43315335,3444.1,3443.9,3.73068]
[1719880697869,0.12403719,3444.1,3443.9,3.73068]
[1719880698065,2.359,3444.4,3443.9,3.73068]
[1719880698379,0.95946996,3444.3,3443.9,3.73068]
[1719880698553,0.30923313,3444.2,3443.9,3.73068]
[1719880698894,0.12402183,3444.1,3443.9,3.73068]
[1719880699263,2.359,3444.4,3443.9,3.73068]
[1719880699455,0.43310481,3444.3,3444.2,0.827]
[1719880700439,0.43310481,3444.3,3444.2,3.121]
[1719880700644,0.43310481,3444.3,3444.2,3.73043]
[1719880701875,0.43329199,3444.3,3444.2,3.73043]
[1719880702172,0.12400957,3444.3,3444.2,3.73043]
[1719880702475,0.12380685,3444.3,3444.2,3.73043]
[1719880702777,12.77886,3445.0,3444.2,3.73043]
[1719880702939,0.12380685,3444.3,3444.2,3.73043]
[1719880703143,0.50253805,3444.9,3444.3,2.90333]
[1719880703340,0.81191426,3444.8,3444.3,2.90333]
[1719880703547,0.3093758,3444.7,3444.3,2.90333]
[1719880703759,12.77886,3445.0,3444.3,2.90333]
[1719880703956,0.8119833,3444.9,3444.3,2.90333]
[1719880704175,0.8119833,3444.8,3444.3,2.90333]
[1719880704365,0.30944167,3444.7,3444.4,0.827]
[1719880704554,0.30944167,3444.6,3444.4,0.827]
[1719880704758,0.30944167,3444.5,3444.4,0.827]
[1719880704944,0.30944167,3444.9,3444.4,0.827]
[1719880705149,0.81198483,3444.8,3444.4,0.827]
[1719880705349,0.30944167,3444.7,3444.4,0.827]
[1719880705561,0.30944167,3444.6,3444.4,0.827]
[1719880705746,0.30944167,3444.5,3444.4,0.827]
[1719880706353,0.30944167,3444.9,3444.4,0.827]
[1719880706648,12.77886,3445.0,3444.4,0.827]
[1719880706649,2.12081375,3444.8,3444.4,0.827]
[1719880706849,0.30944167,3444.7,3444.4,0.827]
[1719880707075,0.81198513,3444.7,3444.4,0.827]
[1719880707277,9.8761,3445.0,3444.6,0.827]
[1719880707482,0.81205745,3444.9,3444.6,0.827]
[1719880707779,0.81205745,3444.8,3444.6,0.827]
[1719880707980,0.81205745,3444.7,3444.6,0.827]
[1719880709683,0.81206189,3444.7,3444.6,0.827]
[1719880710548,0.81206189,3444.7,3444.4,0.827]
[1719880710749,0.81206189,3444.6,3444.4,0.827]
[1719880710945,0.30940685,3444.5,3444.4,0.827]
[1719880711351,0.5025452,3444.5,3444.4,0.827]
[1719880711576,0.81195345,3444.5,3444.4,0.827]
[1719880712061,0.9358432,3444.5,3444.4,0.827]
[1719880712597,0.9358432,3444.5,3444.3,0.827]
[1719880712898,0.81198153,3444.4,3443.9,2.90365]
[1719880713106,0.30940685,3444.3,3444.1,0.827]
[1719880713297,0.93587128,3444.3,3444.1,0.827]
[1719880713506,0.12388975,3444.3,3444.1,0.827]
[1719880713680,2.4491,3444.6,3444.1,0.827]
[1719880713875,0.93574429,3444.5,3444.1,0.827]
[1719880714079,0.81185454,3444.4,3444.1,0.827]
[1719880714268,0.81185454,3444.3,3444.1,0.827]
[1719880714469,0.12388975,3444.2,3444.1,0.827]
[1719880714664,0.12388975,3444.2,3443.5,2.904]
[1719880714665,0.81170287,3444.2,3443.3,2.90416]
[1719880714872,0.93555579,3444.1,3443.7,0.827]
[1719880715197,0.81170287,3444.0,3443.6,0.827]
[1719880715395,0.81170287,3443.9,3443.6,0.827]
[1719880715603,0.30910534,3443.8,3443.6,0.827]
[1719880716173,0.43287533,3443.7,3443.6,0.827]
[1719880716895,0.43287533,3443.7,3443.3,2.4734]
[1719880717173,0.30910534,3443.6,3443.5,0.827]
[1719880717372,0.43262351,3443.6,3443.3,2.4734]
[1719880717573,0.12351817,3443.6,3443.4,0.827]
[1719880717810,2.9036,3444.0,3443.4,0.827]
[1719880718006,0.12347517,3443.5,3443.4,0.827]
[1719880718175,2.9036,3444.0,3443.4,0.827]
[1719880718523,0.81151414,3443.9,3443.4,0.827]
[1719880718826,0.30883665,3443.8,3443.4,0.827]
[1719880718971,0.30883665,3443.8,3443.3,2.4734]
[1719880719315,0.30883665,3443.8,3443.5,0.827]
[1719880719570,0.12347517,3443.7,3443.5,0.827]
[1719880719723,0.30883665,3443.6,3443.5,0.827]
[1719880719892,0.43231182,3443.6,3443.5,0.827]
[1719880721700,0.43231182,3443.6,3443.1,2.313]
[1719880722030,0.30883665,3443.5,3443.4,0.827]
[1719880722619,0.43231182,3443.5,3443.4,0.827]
[1719880723325,0.43231182,3443.5,3443.1,2.90435]
[1719880723532,0.30883665,3443.4,3443.3,0.827]
[1719880723847,0.43222889,3443.4,3443.3,0.827]
[1719880726241,0.43222889,3443.4,3443.1,0.827]
[1719880726425,0.30883665,3443.3,3443.1,0.827]
[1719880726931,0.12334614,3443.2,3443.1,0.827]
[1719880727152,0.30883665,3443.3,3443.1,0.827]
[1719880727153,2.90394,3443.6,3443.1,0.827]
[1719880727291,0.12334614,3443.2,3443.1,0.827]
[1719880727711,2.90394,3443.6,3443.1,0.827]
[1719880727998,0.12334614,3443.2,3443.1,0.827]
[1719880728509,2.90394,3443.6,3443.1,0.827]
[1719880728718,0.12334307,3443.2,3443.1,0.827]
[1719880728925,3.71248,3443.6,3443.1,0.827]
[1719880728926,0.30837289,3443.4,3443.1,0.827]
[1719880729247,0.12334307,3443.2,3443.1,0.827]
[1719880729396,0.30837289,3443.2,3443.1,0.827]
[1719880729594,0.43171596,3443.2,3443.1,0.827]
[1719880730232,0.12334307,3443.2,3443.1,0.827]
[1719880730626,2.90394,3443.6,3443.1,0.827]
[1719880730826,0.12334307,3443.2,3443.1,0.827]
[1719880731028,2.90394,3443.6,3443.1,0.827]
[1719880731338,0.30834304,3443.5,3443.1,0.827]
[1719880731545,0.43168611,3443.5,3443.1,0.827]
[1719880731748,0.30834304,3443.4,3443.1,0.827]
[1719880732144,0.43168611,3443.3,3443.1,0.827]
[1719880732345,0.12334307,3443.3,3443.1,0.827]
[1719880732679,2.90394,3443.6,3443.1,0.827]
[1719880732975,0.30834538,3443.5,3443.1,0.827]
[1719880733125,0.43168845,3443.5,3443.1,0.827]
[1719880733325,0.30834538,3443.4,3443.1,0.827]
[1719880733853,0.43168845,3443.3,3443.1,0.827]
[1719880734053,0.12334307,3443.3,3443.1,0.827]
[1719880734447,2.90394,3443.6,3443.1,0.827]
[1719880734625,0.12334307,3443.2,3442.9,5.90447]
[1719880734827,2.90394,3443.6,3443.1,0.827]
[1719880735065,0.30835123,3443.5,3443.3,0.827]
[1719880735467,0.30835123,3443.5,3442.9,5.90447]
[1719880735468,0.30835123,3443.5,3443.2,0.827]
[1719880736984,0.30835123,3443.5,3442.9,5.90447]
[1719880737133,0.30835123,3443.5,3443.1,0.827]
[1719880737738,0.30835123,3443.5,3443.3,0.827]
[1719880737948,2.3967,3443.9,3443.3,0.827]
[1719880738303,0.30858926,3443.8,3443.3,0.827]
[1719880740473,0.50271532,3443.7,3443.3,0.827]
[1719880740662,0.30858926,3443.6,3443.3,0.827]
[1719880740829,0.30858926,3443.5,3443.3,0.827]
[1719880741030,5.30038,3443.9,3443.3,0.827]
[1719880741230,0.81123261,3443.8,3443.3,0.827]
[1719880741429,0.81123261,3443.7,3443.3,0.827]
[1719880741628,0.30852231,3443.6,3443.3,0.827]
[1719880741827,0.30852231,3443.5,3443.3,0.827]
[1719880742066,5.30038,3443.9,3443.3,0.827]
[1719880742261,0.12334001,3443.4,3443.3,0.827]
[1719880742568,0.43169204,3443.4,3443.0,2.90443]
[1719880742866,0.43169204,3443.4,3443.3,0.827]
[1719880742867,0.12334001,3443.4,3443.3,0.827]
[1719880743372,0.12337381,3443.4,3443.3,0.827]
[1719880743572,2.90385,3443.7,3443.3,0.827]
[1719880743766,0.12337381,3443.4,3443.3,0.827]
[1719880743966,2.90385,3443.7,3443.3,0.827]
[1719880744163,0.12337381,3443.4,3443.3,0.827]
[1719880744365,2.90377,3443.8,3443.3,0.827]
[1719880744601,0.12337381,3443.4,3443.3,0.827]
[1719880744881,7.48,3444.1,3443.3,0.827]
[1719880745055,0.12337381,3443.4,3443.3,2.90416]
[1719880745255,4.024684,3444.0,3443.3,3.73116]
[1719880745570,0.81111952,3443.9,3443.5,0.827]
[1719880745874,0.81111952,3443.8,3443.5,0.827]
[1719880746175,0.81111952,3443.7,3443.5,0.827]
[1719880746471,0.81111952,3443.6,3443.5,0.827]
[1719880746699,0.30843247,3443.6,3443.3,3.73116]
[1719880747043,0.12337994,3443.5,3443.3,3.73116]
[1719880747467,4.024684,3444.0,3443.3,3.73116]
[1719880747642,0.12337994,3443.4,3443.3,3.73116]
[1719880747860,2.90363,3444.0,3443.3,3.73116]
[1719880748060,0.12337994,3443.4,3443.3,3.73116]
[1719880748259,2.90363,3444.0,3443.3,3.73116]
[1719880748457,0.12337994,3443.4,3443.3,3.73116]
[1719880748659,2.90363,3444.0,3443.3,3.73116]
[1719880748983,0.81122977,3443.9,3443.3,3.73116]
[1719880749305,0.81122977,3443.8,3443.3,2.90416]
[1719880749451,0.81122977,3443.7,3443.4,0.827]
[1719880749650,0.30853674,3443.6,3443.4,0.827]
[1719880749951,0.81124136,3443.5,3443.4,0.827]
[1719880750370,0.93462195,3443.5,3443.4,0.827]
[1719880751805,0.93462195,3443.5,3443.3,0.827]
[1719880752112,0.81124201,3443.4,3443.3,0.827]
[1719880752314,0.81124201,3443.4,3443.2,0.827]
[1719880752524,0.12337994,3443.3,3443.2,6.63553]
[1719880752682,10.38356,3444.1,3443.3,2.90417]
[1719880752880,10.38356,3444.1,3443.1,2.90435]
[1719880752881,0.43191947,3444.0,3443.4,3.7311]
[1719880753078,0.43191947,3444.0,3443.4,6.1371]
[1719880753079,0.81125606,3443.9,3443.4,6.1371]
[1719880753407,0.81125606,3443.8,3443.4,5.3101]
[1719880753623,0.81125606,3443.7,3443.4,6.1371]
[1719880753912,0.81125606,3443.6,3443.4,6.1371]
[1719880754133,0.43191947,3443.5,3443.4,6.1371]
[1719880756782,0.43191947,3443.5,3443.4,7.041237]
[1719880756979,0.43191947,3443.5,3443.4,9.945337]
[1719880758922,0.43191947,3443.5,3443.4,12.849437]
[1719880758923,0.12334307,3443.5,3443.4,12.849437]
[1719880759123,7.48,3444.1,3444.0,8.2012]
[1719880759424,7.48,3444.1,3444.0,10.14832]
[1719880759716,7.78924467,3444.1,3444.0,10.14832]
[1719880760426,7.48,3444.1,3444.0,10.14832]
[1719880760621,7.78921838,3444.1,3444.0,10.14832]
[1719880760992,0.30921838,3444.1,3444.0,10.14832]
[1719880761219,0.30942093,3444.9,3444.4,2.90321]
[1719880761418,0.76185157,3444.8,3444.4,3.73021]
[1719880761621,0.30927438,3444.7,3444.2,2.90341]
[1719880761792,0.81182297,3444.7,3444.2,3.73041]
[1719880761992,0.81182297,3444.6,3444.2,3.73041]
[1719880762202,0.30927438,3444.5,3444.2,3.73041]
[1719880762419,0.30927438,3444.5,3444.2,0.827]
[1719880762607,0.30927438,3444.4,3444.2,0.827]
[1719880762812,0.30927438,3444.3,3444.0,5.29758]
[1719880763113,0.30927438,3444.2,3444.1,3.73051]
[1719880763899,2.437,3444.6,3443.5,2.342]
[1719880764224,2.49721261,3444.5,3443.8,0.827]
[1719880764421,0.8118754,3444.4,3443.8,0.827]
[1719880764724,2.437,3444.6,3443.8,0.827]
[1719880764725,0.8118754,3444.3,3443.8,0.827]
[1719880764910,0.30927438,3444.2,3443.8,0.827]
[1719880765111,0.30927438,3444.1,3444.0,0.827]
[1719880765422,0.30927438,3444.3,3444.0,0.827]
[1719880769196,0.30927438,3444.3,3443.8,0.827]
[1719880772201,0.1236011,3444.2,3443.8,0.827]
[1719880772403,0.30927438,3444.1,3443.8,0.827]
[1719880772727,0.30927438,3444.0,3443.7,0.827]
[1719880773107,0.30927438,3443.9,3443.7,0.827]
[1719880773303,0.30927438,3443.8,3443.7,0.827]
[1719880774040,0.30927438,3444.3,3443.7,0.827]
[1719880774192,0.50265472,3444.2,3443.7,0.827]
[1719880774392,3.1940291,3444.1,3443.7,0.827]
[1719880774707,0.43287855,3444.0,3443.7,0.827]
[1719880774909,0.30927438,3443.9,3443.7,0.827]
[1719880775112,0.30927438,3443.9,3443.6,2.90388]
[1719880775424,0.43287855,3443.8,3443.7,0.827]
[1719880781117,0.43287855,3443.8,3443.7,3.73085]
[1719880781326,0.43287855,3443.8,3443.7,9.905385]
[1719880781521,0.12360417,3443.8,3443.7,9.905385]
[1719880781721,7.48,3444.4,3443.8,2.90371]
[1719880781919,0.43247093,3444.3,3444.2,0.827]
[1719880783021,0.93506116,3444.3,3443.9,2.90362]
[1719880783211,0.3089282,3444.2,3443.9,2.90362]
[1719880783531,0.43253849,3444.2,3444.0,0.827]
[1719880783711,0.3089282,3444.1,3444.0,0.827]
[1719880784116,0.43253235,3444.1,3444.0,0.827]
[1719880788847,0.12360415,3444.1,3444.0,0.827]
[1719880789142,0.33461465,3444.1,3444.0,0.827]
[1719880789314,0.12360722,3444.1,3444.0,0.827]
[1719880789515,0.33461465,3444.1,3444.0,0.827]
[1719880789718,0.12360722,3444.1,3444.0,0.827]
[1719880789910,0.33461465,3444.1,3444.0,0.827]
[1719880790111,0.12360722,3444.1,3444.0,0.827]
[1719880790351,0.33461465,3444.1,3444.0,0.827]
[1719880790644,0.12360722,3444.1,3444.0,0.827]
[1719880791112,0.45822187,3444.1,3444.0,0.827]
[1719880792114,0.45822187,3444.1,3443.9,2.90362]
[1719880792318,0.33461465,3444.0,3443.9,0.827]
[1719880792844,0.12360722,3444.0,3443.9,0.827]
[1719880793027,0.33461465,3444.0,3443.9,0.827]
[1719880793225,0.12370552,3444.0,3443.9,0.827]
[1719880793424,0.33461465,3444.0,3443.9,0.827]
[1719880793725,0.12370552,3444.0,3443.9,0.827]
[1719880793924,0.33461465,3444.0,3443.9,0.827]
[1719880794144,0.12370552,3444.0,3443.9,0.827]
[1719880794347,0.33461465,3444.2,3443.9,0.827]
[1719880794674,0.12370552,3444.0,3443.9,0.827]
[1719880794952,0.45832017,3444.0,3443.9,0.827]
[1719880796251,0.45808717,3444.0,3443.9,0.827]
[1719880797367,0.45808717,3444.0,3443.5,2.90402]
[1719880797522,0.12370552,3444.0,3443.9,0.827]
[1719880797825,0.33432476,3444.3,3443.9,0.827]
[1719880798021,0.33432476,3444.2,3444.1,0.827]
[1719880798519,0.33432476,3444.3,3444.1,0.827]
[1719880798739,0.33432476,3444.2,3444.1,0.827]
[1719880799347,0.33432476,3444.3,3444.1,0.827]
[1719880799920,0.33432476,3444.3,3444.1,3.73049]
[1719880800123,0.33432476,3444.3,3444.1,4.632219]
[1719880800444,0.33432476,3444.3,3444.2,2.90343]
[1719880801649,7.48,3444.4,3444.2,2.90343]
[1719880801855,0.33458734,3444.3,3444.2,2.90343]
[1719880802059,0.45828056,3444.3,3444.2,2.90343]
[1719880803118,0.33458734,3444.3,3444.2,2.90343]
[1719880803362,0.33461162,3444.3,3444.2,2.90343]
[1719880803543,0.33461162,3444.3,3444.2,3.805153]
[1719880803950,0.33461162,3444.8,3444.2,3.805153]
[1719880804156,0.33461162,3444.7,3444.3,0.827]
[1719880804461,0.33461162,3444.7,3444.4,2.2828]
[1719880804462,0.33461162,3444.6,3444.4,2.2828]
[1719880804670,7.48,3445.1,3444.6,3.73009]
[1719880804825,0.33485647,3445.0,3444.8,0.827]
[1719880805026,0.33485647,3444.9,3444.8,0.827]
[1719880805543,0.33485647,3445.1,3444.8,0.827]
[1719880805744,0.33485647,3445.0,3444.8,0.827]
[1719880805944,3.01554004,3445.2,3444.8,0.827]
[1719880805945,0.33485647,3444.9,3444.8,0.827]
[1719880806260,0.33485647,3445.1,3444.8,0.827]
[1719880806456,0.33485647,3445.0,3444.8,0.827]
[1719880806663,0.33485647,3444.9,3444.8,0.827]
[1719880806846,0.33485647,3445.1,3444.8,0.827]
[1719880807048,0.33485647,3445.0,3444.8,0.827]
[1719880807251,0.33485647,3444.9,3444.8,0.827]
[1719880807451,3.01554004,3445.2,3444.8,0.827]
[1719880807761,0.33509825,3445.1,3444.8,0.827]
[1719880807959,0.33509825,3445.0,3444.4,8.08918]
[1719880808158,2.90251,3445.3,3444.7,0.827]
[1719880808159,0.33509825,3444.9,3444.7,0.827]
[1719880808331,0.33509825,3444.8,3444.7,0.827]
[1719880808531,1.15271425,3445.2,3444.7,0.827]
[1719880808732,0.33509825,3445.1,3444.7,0.827]
[1719880808933,0.33509825,3445.0,3444.7,0.827]
[1719880809158,0.33509825,3444.9,3444.7,0.827]
[1719880809359,0.33509825,3444.9,3444.4,2.90325]
[1719880809681,0.33509825,3444.8,3444.6,0.827]
[1719880809831,0.33509825,3444.7,3444.6,0.827]
[1719880810364,3.23793825,3444.9,3444.2,2.90338]
[1719880810664,0.33509825,3444.8,3444.4,0.827]
[1719880810832,4.09639908,3444.8,3444.0,5.35604]
[1719880811034,1.20989113,3444.7,3444.1,3.73051]
[1719880811238,0.33509825,3444.6,3444.1,3.73051]
[1719880811734,0.33509825,3444.6,3444.3,0.827]
[1719880812693,0.33509825,3444.6,3444.4,2.4476]
[1719880812845,5.2076,3445.2,3444.5,3.97493]
[1719880813198,2.90291,3444.9,3444.1,2.90346]
[1719880813371,0.33480395,3444.8,3444.4,0.827]
[1719880814448,0.50255378,3444.7,3444.4,0.827]
[1719880814686,0.33480395,3444.6,3444.4,0.827]
[1719880814974,0.33480395,3444.5,3444.4,0.827]
[1719880815173,0.33480395,3444.8,3444.4,0.827]
[1719880815373,0.50254739,3444.7,3444.4,0.827]
[1719880815555,0.33480395,3444.6,3444.4,0.827]
[1719880815895,0.33480395,3444.5,3444.4,0.827]
[1719880816043,0.33480395,3444.8,3444.4,0.827]
[1719880816248,0.83735071,3444.7,3444.4,0.827]
[1719880816468,0.33480395,3444.6,3444.4,0.827]
[1719880816778,0.33480395,3444.5,3444.4,0.827]
[1719880816963,3.23774395,3444.8,3444.4,0.827]
[1719880817174,2.3188,3444.6,3444.4,0.827]
[1719880817377,0.83735777,3444.5,3444.4,0.827]
[1719880817680,0.96115796,3444.5,3444.4,0.827]
[1719880818450,0.45858624,3444.5,3444.4,0.827]
[1719880818648,0.96116653,3444.5,3444.4,0.827]
[1719880818953,0.96117103,3444.5,3444.4,0.827]
[1719880820884,1.57946913,3444.5,3443.7,2.90383]
[1719880821182,0.83738874,3444.4,3443.9,0.827]
[1719880821482,0.45854937,3444.3,3443.9,0.827]
[1719880821700,0.33480395,3444.2,3443.9,0.827]
[1719880822189,0.45854937,3444.1,3443.8,2.90376]
[1719880822377,0.33480395,3444.0,3443.8,4.019846]
[1719880822576,0.33480395,3444.0,3443.9,0.827]
[1719880823151,0.33480395,3444.4,3443.9,0.827]
[1719880823353,0.33480395,3444.3,3443.9,2.90368]
[1719880823575,2.90318,3444.5,3444.3,0.827]
[1719880823773,0.8370059,3444.4,3444.3,0.827]
[1719880824779,0.33441462,3444.4,3444.3,0.827]
[1719880825281,0.33441462,3444.8,3444.3,0.827]
[1719880825479,0.50253378,3444.7,3444.3,0.827]
[1719880825677,0.33441462,3444.6,3444.3,0.827]
[1719880826003,5.28439,3444.9,3444.5,0.827]
[1719880826161,5.28439,3444.9,3444.2,2.90342]
[1719880826162,3.74013237,3444.8,3444.2,2.90342]
[1719880826495,0.83720237,3444.7,3444.5,0.827]
[1719880826693,0.83720237,3444.6,3444.5,0.827]
[1719880828061,0.83721657,3444.6,3444.5,0.827]
[1719880828463,0.83721828,3444.6,3444.5,0.827]
[1719880830497,0.33466162,3444.6,3444.5,0.827]
[1719880830967,0.33466162,3445.1,3444.5,0.827]
[1719880831173,12.80939,3445.2,3444.5,0.827]
[1719880831174,0.83717594,3445.0,3444.5,0.827]
[1719880831378,0.83717594,3444.9,3444.5,0.827]
[1719880831691,0.83717594,3444.8,3444.5,0.827]
[1719880831896,0.33466162,3444.7,3444.5,0.827]
[1719880832057,0.1239051,3444.7,3444.6,0.827]
[1719880832261,0.33500315,3444.7,3444.6,0.827]
[1719880832458,0.1239051,3444.7,3444.6,0.827]
[1719880832663,0.33500315,3445.0,3444.6,0.827]
[1719880832979,0.1239051,3444.7,3444.6,0.827]
[1719880833480,0.33500315,3444.7,3444.6,0.827]
[1719880833686,0.45890825,3444.7,3444.6,0.827]
[1719880836362,0.96142848,3444.7,3444.6,0.827]
[1719880836997,0.96142848,3444.7,3444.5,0.827]
[1719880837207,0.83752338,3444.6,3444.5,0.827]
[1719880837391,0.33500315,3444.6,3444.5,0.827]
[1719880837697,0.45890825,3444.6,3444.5,0.827]
[1719880837897,0.96145587,3444.6,3444.5,0.827]
[1719880838681,0.96145587,3444.6,3444.4,0.827]
[1719880838883,0.8375505,3444.5,3444.4,0.827]
[1719880839090,0.83727601,3444.5,3444.4,0.827]
[1719880839299,0.96118071,3444.5,3444.4,0.827]
[1719880840304,0.45863336,3444.5,3444.4,0.827]
[1719880840492,0.96117794,3444.5,3444.4,0.827]
[1719880840670,1.46372252,3444.5,3444.4,0.827]
[1719880843273,0.96117794,3444.5,3444.4,0.827]
[1719880843705,0.96117794,3444.5,3444.4,3.1993]
[1719880843899,0.96117794,3444.5,3444.4,6.475602]
[1719880844295,0.96117794,3444.5,3444.4,12.378862]
[1719880844494,0.62644968,3444.5,3444.4,15.282122]
[1719880844698,0.62644968,3444.5,3444.4,18.832122]
[1719880844899,0.50254458,3444.5,3444.4,18.832122]
[1719880855135,0.33599608,3445.6,3445.5,0.827]
[1719880855290,0.33599608,3445.9,3445.5,0.827]
[1719880858094,3.23799608,3445.9,3445.5,0.827]
[1719880858336,0.8383985,3445.8,3445.5,0.827]
[1719880858522,0.33599608,3445.7,3445.5,0.827]
[1719880858831,0.33599608,3445.6,3445.5,0.827]
[1719880859417,3.33599608,3446.0,3445.5,0.827]